bitfinex/quotes_SOLUSD_20250514
["timestamp","ask_amount","ask_price","bid_price","bid_amount"]
[1747231458436,41.22540903,178.48,178.43,23.2]
[1747231459272,5.60255476,178.49,178.43,23.2]
[1747231459433,5.6031826,178.47,178.43,23.2]
[1747231460061,41.22540903,178.49,178.43,23.2]
[1747231460256,26.0,178.5,178.43,28.80432637]
[1747231460931,41.22540903,178.49,178.43,23.2]
[1747231461236,26.0,178.5,178.43,28.8044335]
[1747231461556,31.60236044,178.5,178.43,28.8044335]
[1747231461945,26.0,178.43,178.4,6.3536]
[1747231462151,67.22540903,178.43,178.41,23.16]
[1747231462464,41.22540903,178.43,178.4,6.3536]
[1747231462665,41.22540903,178.43,178.4,29.4936]
[1747231462864,26.0,178.45,178.4,29.4936]
[1747231463168,41.22540903,178.41,178.4,23.14]
[1747231463880,46.83047601,178.41,178.4,23.14]
[1747231464448,46.83047601,178.41,178.35,6.5391]
[1747231464767,46.83047601,178.41,178.35,29.6791]
[1747231465065,46.82921962,178.45,178.36,18.64964886]
[1747231465269,179.22540903,178.44,178.36,18.64964886]
[1747231465850,5.60443871,178.43,178.36,24.25609976]
[1747231466052,41.22540903,178.42,178.35,29.6791]
[1747231466266,41.22540903,178.41,178.35,29.6791]
[1747231466450,41.22540903,178.42,178.35,29.6791]
[1747231466652,46.82984774,178.43,178.35,29.6791]
[1747231466873,41.22540903,178.38,178.35,6.5391]
[1747231467078,41.22540903,178.36,178.34,1.6031]
[1747231467379,41.22540903,178.35,178.31,6.0665]
[1747231467561,41.22540903,178.33,178.3,23.12]
[1747231467759,5.60758145,178.33,178.3,23.12]
[1747231467942,5.60758145,178.33,178.29,24.7418]
[1747231467943,46.83299048,178.33,178.29,24.7418]
[1747231468145,41.22540903,178.31,178.29,23.12]
[1747231468374,41.22540903,178.3,178.29,23.12]
[1747231468563,46.83299048,178.33,178.29,23.12]
[1747231468771,0.14216157,178.36,178.29,23.12]
[1747231468772,5.60663825,178.36,178.29,23.12]
[1747231469082,41.22540903,178.35,178.29,23.12]
[1747231469671,138.0,178.37,178.29,28.72882251]
[1747231469881,184.83227352,178.36,178.29,28.72882251]
[1747231470172,184.83214915,178.36,178.29,28.72882251]
[1747231470378,138.0,178.36,178.29,28.72882251]
[1747231470558,143.60671411,178.36,178.29,28.72882251]
[1747231470758,41.22540903,178.41,178.32,18.64964886]
[1747231470954,179.22540903,178.4,178.31,1.6493]
[1747231471180,41.22540903,178.38,178.31,1.6493]
[1747231471389,41.22540903,178.39,178.31,1.6493]
[1747231471885,205.22540903,178.4,178.31,1.6493]
[1747231472086,41.22540903,178.39,178.31,7.25735058]
[1747231472254,138.0,178.4,178.33,6.2625]
[1747231472456,138.0,178.4,178.34,18.64964886]
[1747231473078,41.22540903,178.44,178.34,18.64964886]
[1747231473288,72.82923255,178.45,178.36,18.64964886]
[1747231473593,46.82923255,178.45,178.37,23.1]
[1747231473885,138.0,178.46,178.38,18.64964886]
[1747231474083,41.22540903,178.49,178.4,1.5016]
[1747231474389,26.0,178.48,178.41,6.5787]
[1747231474566,138.0,178.52,178.42,18.64964886]
[1747231474910,205.22540903,178.52,178.42,41.84964886]
[1747231475188,41.22540903,178.51,178.42,41.84964886]
[1747231475586,205.22540903,178.52,178.42,41.84964886]
[1747231475766,5.60200912,178.51,178.43,5.60443871]
[1747231476089,5.60200912,178.51,178.44,23.08]
[1747231476564,205.22540903,178.52,178.44,23.08]
[1747231476765,138.0,178.52,178.45,18.64964886]
[1747231476986,143.60170199,178.52,178.45,18.64964886]
[1747231477674,46.82711102,178.52,178.44,23.08]
[1747231478506,41.22540903,178.5,178.44,23.08]
[1747231478802,41.22540903,178.49,178.44,23.08]
[1747231479004,41.22540903,178.5,178.44,23.08]
[1747231479475,41.22540903,178.51,178.45,23.06]
[1747231479796,41.22540903,178.54,178.45,28.66374733]
[1747231479983,5.60067208,178.55,178.45,28.66374733]
[1747231480187,5.60037689,178.56,178.48,18.64964886]
[1747231480515,138.0,178.59,178.48,18.64964886]
[1747231480685,5.59976209,178.58,178.5,18.64964886]
[1747231480870,46.82517112,178.58,178.5,18.64964886]
[1747231481491,5.59976209,178.58,178.5,18.64964886]
[1747231481679,5.59976209,178.58,178.51,5.60192706]
[1747231481878,5.59976209,178.58,178.52,23.04]
[1747231482098,46.82517112,178.58,178.52,23.04]
[1747231482301,5.59976209,178.58,178.52,23.04]
[1747231484373,46.82517112,178.58,178.52,23.04]
[1747231484574,5.59976209,178.58,178.52,23.04]
[1747231486372,41.22540903,178.53,178.49,23.2]
[1747231486585,28.78241803,178.53,178.49,46.22]
[1747231486790,166.78241803,178.56,178.49,46.22]
[1747231487184,166.78241803,178.56,178.49,51.82246608]
[1747231487805,138.0,178.56,178.49,51.82246608]
[1747231488272,138.0,178.56,178.5,18.64964886]
[1747231490397,143.60036537,178.56,178.5,24.25186117]
[1747231490997,138.0,178.56,178.5,24.25186117]
[1747231492080,138.0,178.61,178.51,0.14216157]
[1747231492303,138.0,178.61,178.51,0.28432314]
[1747231492606,162.56145015,178.61,178.53,18.64964886]
[1747231492976,18.96252592,178.6,178.53,18.64964886]
[1747231493411,143.59892423,178.61,178.53,18.64964886]
[1747231493615,143.59892423,178.61,178.56,26.0]
[1747231493616,138.0,178.61,178.56,26.0]
[1747231493790,138.0,178.65,178.57,41.62964886]
[1747231493978,138.0,178.65,178.58,0.28432314]
[1747231494574,138.0,178.65,178.6,18.64964886]
[1747231494780,138.0,178.69,178.6,18.64964886]
[1747231495090,138.0,178.69,178.61,7.6116]
[1747231495091,143.59634968,178.69,178.61,7.6116]
[1747231495279,162.5588756,178.69,178.61,7.6116]
[1747231495479,143.59634968,178.69,178.61,7.6116]
[1747231495697,138.0,178.69,178.63,26.0]
[1747231495903,5.59534467,178.72,178.65,18.64964886]
[1747231496900,5.59471858,178.74,178.65,24.2471109]
[1747231498103,34.30354511,178.74,178.65,18.64964886]
[1747231498803,28.70882653,178.71,178.64,22.96]
[1747231499014,28.70882653,178.7,178.64,22.96]
[1747231499206,28.70882653,178.72,178.64,22.96]
[1747231499509,28.70882653,178.73,178.64,22.96]
[1747231499689,45.58151504,178.74,178.64,22.96]
[1747231499875,74.29034157,178.74,178.64,28.55780284]
[1747231500077,28.70882653,178.73,178.64,28.55780284]
[1747231500322,5.59534467,178.72,178.64,28.55780284]
[1747231500509,5.59534467,178.72,178.64,22.96]
[1747231500891,28.70882653,178.7,178.64,22.96]
[1747231501398,28.70882653,178.7,178.65,22.94]
[1747231502394,5.59628406,178.69,178.65,22.94]
[1747231502795,164.0,178.68,178.61,7.6116]
[1747231503134,54.70882653,178.62,178.56,1.5418]
[1747231503282,28.70882653,178.59,178.56,1.5418]
[1747231503737,138.0,178.61,178.56,1.5418]
[1747231504100,166.70882653,178.61,178.56,1.5418]
[1747231504432,138.0,178.61,178.56,1.5418]
[1747231504605,138.0,178.61,178.56,7.14206021]
[1747231504914,138.0,178.61,178.56,1.5418]
[1747231505125,143.59888444,178.61,178.56,1.5418]
[1747231505290,138.0,178.61,178.56,1.5418]
[1747231505786,166.70882653,178.6,178.56,1.5418]
[1747231506083,28.70882653,178.59,178.56,24.4418]
[1747231506286,138.0,178.6,178.56,24.4418]
[1747231506507,138.0,178.6,178.56,30.04213738]
[1747231507221,138.0,178.6,178.56,24.4418]
[1747231507520,172.30805011,178.6,178.56,24.4418]
[1747231507808,28.70882653,178.59,178.56,24.4418]
[1747231508024,28.70882653,178.59,178.56,22.9]
[1747231508188,138.0,178.6,178.57,18.64964886]
[1747231508382,58.35782653,178.74,178.58,5.59973121]
[1747231508383,143.59722869,178.66,178.58,5.59973121]
[1747231508583,143.59722869,178.66,178.57,28.61997083]
[1747231508584,28.70882653,178.64,178.57,28.61997083]
[1747231508825,28.70882653,178.65,178.57,28.61997083]
[1747231509604,5.5969105,178.67,178.57,28.61997083]
[1747231509810,28.70882653,178.63,178.57,23.02]
[1747231510421,28.70882653,178.62,178.53,50.70514886]
[1747231510598,138.0,178.64,178.58,22.88]
[1747231510793,138.0,178.64,178.59,1.5454]
[1747231511203,5.59534467,178.72,178.62,18.64964886]
[1747231511466,166.70882653,178.71,178.62,23.02]
[1747231511723,5.5959709,178.7,178.63,5.5981638]
[1747231512309,28.70882653,178.66,178.62,23.02]
[1747231512492,28.70882653,178.66,178.62,45.9]
[1747231512691,138.0,178.68,178.62,45.9]
[1747231512903,138.0,178.68,178.62,51.49839347]
[1747231513704,138.0,178.68,178.63,18.64964886]
[1747231513904,138.0,178.72,178.64,5.59785042]
[1747231514109,138.0,178.72,178.65,18.64964886]
[1747231514524,138.0,178.72,178.66,1.6141]
[1747231515126,28.70882653,178.7,178.66,24.4741]
[1747231515330,28.70882653,178.67,178.61,7.6697]
[1747231515505,28.70882653,178.63,178.6,22.86]
[1747231516602,5.59753708,178.65,178.6,22.86]
[1747231516603,28.70882653,178.62,178.6,22.86]
[1747231516808,28.70882653,178.61,178.58,22.86]
[1747231517012,28.70882653,178.62,178.58,22.86]
[1747231517239,28.70882653,178.63,178.58,22.86]
[1747231517534,31.59753708,178.65,178.58,22.86]
[1747231517827,138.0,178.66,178.58,22.86]
[1747231517828,143.59731115,178.66,178.58,28.45945408]
[1747231518003,143.59731115,178.66,178.59,18.64964886]
[1747231518004,138.0,178.66,178.59,18.64964886]
[1747231519829,138.0,178.66,178.6,5.59910414]
[1747231520049,28.70882653,178.64,178.57,6.2623]
[1747231520355,28.70882653,178.6,178.58,22.84]
[1747231520518,28.70882653,178.61,178.58,22.84]
[1747231520721,28.70882653,178.62,178.58,22.84]
[1747231520920,28.70882653,178.61,178.58,22.84]
[1747231521328,28.70882653,178.62,178.58,22.84]
[1747231521633,28.70882653,178.62,178.57,6.2623]
[1747231521634,28.70882653,178.59,178.51,1.6496]
[1747231521842,34.3101951,178.53,178.51,22.84]
[1747231522522,28.70882653,178.55,178.51,22.84]
[1747231522721,54.70882653,178.58,178.51,28.44179922]
[1747231522926,54.70882653,178.58,178.51,22.84]
[1747231522927,28.70882653,178.54,178.51,22.84]
[1747231523229,5.59910414,178.6,178.51,22.84]
[1747231523410,28.70882653,178.59,178.51,22.84]
[1747231523806,28.70882653,178.58,178.51,22.84]
[1747231524011,169.59882962,178.61,178.51,28.44169206]
[1747231524331,28.70882653,178.61,178.52,18.64964886]
[1747231524508,54.70882653,178.63,178.52,44.64964886]
[1747231524708,28.70882653,178.63,178.54,18.64964886]
[1747231524947,28.70882653,178.62,178.54,18.64964886]
[1747231525313,28.70882653,178.61,178.53,1.5973]
[1747231525515,28.70882653,178.59,178.53,1.5973]
[1747231526040,34.30898028,178.57,178.53,1.5973]
[1747231526217,34.30898028,178.57,178.54,22.82]
[1747231526820,28.70882653,178.57,178.54,22.82]
[1747231527028,28.70882653,178.59,178.54,22.82]
[1747231527223,28.70882653,178.63,178.54,22.82]
[1747231527427,138.0,178.62,178.54,22.82]
[1747231527812,138.0,178.62,178.56,6.5165]
[1747231528010,143.59853074,178.62,178.57,22.88]
[1747231528213,138.0,178.62,178.57,28.47994254]
[1747231529017,138.0,178.61,178.56,6.5165]
[1747231529220,28.70882653,178.59,178.56,29.3165]
[1747231529426,28.70882653,178.6,178.56,29.3165]
[1747231529625,28.70882653,178.59,178.56,29.3165]
[1747231529925,138.0,178.61,178.56,34.91680671]
[1747231530347,166.70882653,178.61,178.56,29.3165]
[1747231530557,138.0,178.61,178.56,29.3165]
[1747231530731,138.0,178.61,178.56,34.91674317]
[1747231531060,28.70882653,178.58,178.53,1.5973]
[1747231531360,28.70882653,178.54,178.52,22.8]
[1747231531952,28.70882653,178.53,178.52,22.8]
[1747231532136,34.31012603,178.53,178.52,22.8]
[1747231532535,34.31012603,178.53,178.49,45.66]
[1747231532867,28.70882653,178.5,178.46,29.1807]
[1747231533039,28.70882653,178.48,178.43,1.5751]
[1747231533241,28.70882653,178.48,178.44,22.78]
[1747231533471,28.70882653,178.5,178.44,22.78]
[1747231533766,28.70882653,178.49,178.44,22.78]
[1747231534241,28.70882653,178.47,178.43,1.5751]
[1747231534432,5.60284182,178.49,178.42,22.88]
[1747231534433,28.70882653,178.46,178.42,22.88]
[1747231534634,26.0,178.49,178.43,22.78]
[1747231534861,164.0,178.52,178.43,22.78]
[1747231535030,28.70882653,178.5,178.43,22.78]
[1747231535234,28.70882653,178.51,178.43,22.78]
[1747231535557,28.70882653,178.5,178.43,22.78]
[1747231535747,28.70882653,178.49,178.42,28.48469472]
[1747231536066,28.70882653,178.46,178.43,22.78]
[1747231536250,138.0,178.48,178.44,5.60412463]
[1747231536664,137.9454481,178.48,178.44,5.60412463]
[1747231537168,137.9454481,178.52,178.44,19.61443621]
[1747231537462,137.9454481,178.52,178.45,22.88]
[1747231538384,137.9454481,178.52,178.46,5.60349658]
[1747231538672,28.70882653,178.51,178.45,22.88]
[1747231538873,28.70882653,178.51,178.44,22.78]
[1747231538874,28.70882653,178.47,178.44,22.78]
[1747231539044,166.65427463,178.46,178.44,22.78]
[1747231539875,137.9454481,178.46,178.44,22.78]
[1747231541032,137.9454481,178.46,178.44,28.38388464]
[1747231541236,137.9454481,178.51,178.45,18.64964886]
[1747231541836,137.9454481,178.51,178.44,28.38388464]
[1747231542035,172.25628987,178.51,178.44,28.38388464]
[1747231542274,143.54746334,178.51,178.44,28.38388464]
[1747231542471,137.9454481,178.5,178.44,22.78]
[1747231542651,28.70882653,178.46,178.43,22.76]
[1747231542864,28.70882653,178.47,178.43,22.76]
[1747231543064,28.70882653,178.48,178.43,22.76]
[1747231543260,166.65427463,178.49,178.43,22.76]
[1747231543575,137.9454481,178.49,178.43,22.76]
[1747231543786,28.70882653,178.48,178.43,22.76]
[1747231544465,28.70882653,178.47,178.43,22.76]
[1747231544848,5.60300245,178.48,178.41,6.5357]
[1747231544849,28.70882653,178.46,178.41,6.5357]
[1747231545080,137.9454481,178.45,178.42,22.74]
[1747231546166,137.9454481,178.45,178.43,18.64964886]
[1747231546367,137.9454481,178.45,178.43,5.60443871]
[1747231548075,28.70882653,178.47,178.41,6.5357]
[1747231548269,28.70882653,178.42,178.38,1.5053]
[1747231548498,34.31369733,178.42,178.38,1.5053]
[1747231548807,28.70882653,178.39,178.37,22.74]
[1747231548969,28.70882653,178.38,178.37,22.74]
[1747231549608,28.70882653,178.38,178.33,22.76]
[1747231549894,28.70882653,178.36,178.31,22.74]
[1747231550270,138.0,178.37,178.28,7.8498]
[1747231550271,28.70882653,178.35,178.28,7.8498]
[1747231550472,28.70882653,178.33,178.29,22.72]
[1747231550694,28.70882653,178.32,178.29,22.72]
[1747231550898,34.31643236,178.33,178.29,22.72]
[1747231551075,28.70882653,178.33,178.29,22.72]
[1747231551404,28.70882653,178.33,178.29,28.32874702]
[1747231551584,138.0,178.36,178.29,28.32874702]
[1747231551894,138.0,178.35,178.3,18.64964886]
[1747231552215,28.70882653,178.33,178.28,7.8498]
[1747231552511,28.70882653,178.31,178.26,22.72]
[1747231552708,166.70882653,178.34,178.26,28.32968778]
[1747231552894,28.70882653,178.33,178.26,28.32968778]
[1747231553206,28.70882653,178.31,178.26,22.72]
[1747231553498,28.70882653,178.32,178.26,22.72]
[1747231553706,166.70882653,178.34,178.26,28.32953339]
[1747231554078,28.70882653,178.32,178.27,22.72]
[1747231554284,28.70882653,178.31,178.27,22.72]
[1747231554477,28.70882653,178.32,178.27,22.72]
[1747231554673,28.70882653,178.31,178.27,22.72]
[1747231554893,5.60789984,178.32,178.27,22.72]
[1747231554894,28.70882653,178.3,178.27,22.72]
[1747231555408,28.70882653,178.31,178.25,5.61008942]
[1747231555594,138.0,178.3,178.26,22.72]
[1747231556574,138.0,178.3,178.27,5.60946878]
[1747231556774,138.0,178.3,178.28,18.64964886]
[1747231557997,138.0,178.3,178.27,5.60946878]
[1747231558180,138.0,178.3,178.28,22.7]
[1747231559619,138.0,178.3,178.28,28.30913766]
[1747231560111,138.0,178.34,178.28,28.30913766]
[1747231560295,138.0,178.34,178.28,42.332023]
[1747231560883,138.0,178.34,178.28,28.30913766]
[1747231561514,166.70882653,178.33,178.28,22.7]
[1747231561915,28.70882653,178.32,178.28,22.7]
[1747231562417,28.70882653,178.32,178.25,5.61005077]
[1747231562591,28.70882653,178.32,178.27,22.68]
[1747231562785,138.0,178.33,178.27,28.28917499]
[1747231562995,28.70882653,178.32,178.27,22.68]
[1747231563409,28.70882653,178.31,178.24,22.76]
[1747231563613,28.70882653,178.28,178.24,45.44]
[1747231563812,138.0,178.31,178.24,45.44]
[1747231564110,138.0,178.31,178.24,51.05031044]
[1747231565119,28.70882653,178.3,178.24,45.44]
[1747231565408,28.70882653,178.25,178.21,22.68]
[1747231565612,26.0,178.27,178.21,22.68]
[1747231565613,166.70882653,178.24,178.21,22.68]
[1747231565984,138.0,178.24,178.21,22.68]
[1747231566179,28.70882653,178.22,178.14,6.4084]
[1747231566385,28.70882653,178.18,178.15,22.68]
[1747231566584,28.70882653,178.17,178.15,22.68]
[1747231567010,34.32124413,178.18,178.15,22.68]
[1747231567590,28.70882653,178.17,178.15,22.68]
[1747231567814,28.70882653,178.18,178.15,22.68]
[1747231568000,28.70882653,178.19,178.15,22.68]
[1747231568196,0.14216157,178.19,178.05,19.65715037]
[1747231568427,28.70882653,178.15,178.06,22.66]
[1747231568736,26.0,178.16,178.06,22.66]
[1747231568737,28.70882653,178.13,178.06,22.66]
[1747231568906,54.70882653,178.16,178.06,22.66]
[1747231569101,54.70882653,178.16,178.07,19.65519176]
[1747231569309,28.70882653,178.14,178.07,5.61576907]
[1747231569611,28.70882653,178.13,178.05,28.39615955]
[1747231569821,28.70882653,178.12,178.06,22.66]
[1747231570029,164.0,178.11,178.03,8.2582]
[1747231570207,28.70882653,178.07,178.03,8.2582]
[1747231570525,138.0,178.11,178.03,13.87517092]
[1747231570738,26.0,178.13,178.04,18.64964886]
[1747231570939,26.0,178.13,178.05,22.78]
[1747231571235,28.70882653,178.15,178.06,5.61608446]
[1747231571413,28.70882653,178.15,178.06,19.65629562]
[1747231572130,166.70882653,178.14,178.06,19.65629562]
[1747231572338,28.70882653,178.1,178.06,5.61608446]
[1747231572501,28.70882653,178.08,178.05,22.66]
[1747231572707,28.70882653,178.08,178.03,8.2582]
[1747231572708,28.70882653,178.06,178.03,8.2582]
[1747231573228,28.70882653,178.05,177.99,45.3]
[1747231573420,28.70882653,178.06,178.0,5.6179233]
[1747231573729,28.70882653,178.04,177.99,50.91824022]
[1747231574066,28.70882653,178.04,177.94,4.54277263]
[1747231574067,28.70882653,178.0,177.95,5.61955605]
[1747231574198,26.0,178.03,177.95,5.61955605]
[1747231574398,28.70882653,178.0,177.95,5.61955605]
[1747231574727,28.70882653,177.98,177.94,28.9671]
[1747231575232,28.70882653,177.96,177.87,8.0304]
[1747231575528,0.14216157,178.0,177.9,22.66]
[1747231575702,28.70882653,177.97,177.9,22.66]
[1747231576207,28.70882653,177.96,177.91,22.64]
[1747231576411,0.28432314,177.96,177.88,5.62176748]
[1747231576637,28.70882653,177.91,177.87,8.0304]
[1747231576941,28.70882653,177.92,177.87,13.65246481]
[1747231577103,28.70882653,177.92,177.87,8.0304]
[1747231577455,28.70882653,177.88,177.85,22.64]
[1747231577607,0.28432314,177.91,177.82,28.28350828]
[1747231577803,28.70882653,177.87,177.82,28.28350828]
[1747231578002,28.70882653,177.88,177.82,28.28350828]
[1747231578241,28.70882653,177.89,177.82,19.68266922]
[1747231578411,0.14216157,177.91,177.82,19.68266922]
[1747231578412,28.70882653,177.91,177.83,22.66]
[1747231578612,28.70882653,177.9,177.83,22.66]
[1747231578813,0.14216157,177.97,177.84,18.64964886]
[1747231579019,28.70882653,177.95,177.85,19.67950519]
[1747231579314,26.0,177.96,177.85,19.67950519]
[1747231579518,28.70882653,178.02,177.86,44.64964886]
[1747231579840,28.70882653,178.0,177.91,26.0]
[1747231580142,26.14216157,178.03,177.92,12.66]
[1747231580359,5.61673989,178.04,177.92,12.66]
[1747231580525,28.70882653,178.0,177.93,6.497]
[1747231580739,28.70882653,177.98,177.93,6.497]
[1747231581042,26.0,178.03,177.94,5.61987186]
[1747231581355,28.70882653,178.0,177.94,5.61987186]
[1747231581516,5.61715309,178.03,177.94,5.61987186]
[1747231581711,28.70882653,177.99,177.94,5.61987186]
[1747231582253,28.70882653,177.96,177.92,7.19925457]
[1747231582415,53.26014489,178.02,177.92,7.19925457]
[1747231582615,28.70882653,177.96,177.92,7.19925457]
[1747231582823,0.28432314,178.02,177.92,7.19925457]
[1747231583024,28.70882653,177.97,177.92,7.19925457]
[1747231583758,28.70882653,177.95,177.91,28.26076295]
[1747231583939,28.70882653,177.93,177.89,5.62145145]
[1747231584259,28.70882653,177.94,177.89,5.62145145]
[1747231584426,26.0,177.98,177.89,5.62145145]
[1747231584427,28.70882653,177.93,177.89,5.62145145]
[1747231585839,26.0,177.98,177.89,5.62145145]
[1747231586037,28.70882653,177.96,177.89,19.67508009]
[1747231586245,28.70882653,177.97,177.89,19.67508009]
[1747231586429,28.70882653,177.96,177.89,19.67508009]
[1747231586633,26.0,177.98,177.9,22.64]
[1747231586856,28.70882653,177.98,177.9,22.64]
[1747231587363,28.70882653,177.95,177.89,5.62145145]
[1747231587521,28.70882653,177.97,177.9,22.64]
[1747231587722,0.14216157,178.01,177.91,5.62081951]
[1747231587939,18.64964886,178.07,177.91,5.62081951]
[1747231588225,28.70882653,178.0,177.91,5.62081951]
[1747231588726,26.28432314,178.04,177.91,5.62081951]
[1747231588727,28.70882653,177.99,177.91,5.62081951]
[1747231588929,28.70882653,177.98,177.91,5.62081951]
[1747231589130,54.70882653,178.02,177.91,5.62081951]
[1747231589330,28.70882653,178.01,177.91,5.62081951]
[1747231589546,28.70882653,177.99,177.91,5.62081951]
[1747231589722,28.70882653,177.99,177.9,22.62]
[1747231590362,34.32717645,177.99,177.9,22.62]
[1747231590542,28.70882653,177.99,177.9,22.62]
[1747231590745,138.0,178.0,177.91,18.64964886]
[1747231591363,138.0,178.0,177.92,0.28432314]
[1747231591560,138.0,178.0,177.91,18.64964886]
[1747231591765,138.0,178.0,177.93,18.64964886]
[1747231592060,138.0,178.0,177.93,44.64964886]
[1747231592569,143.61799398,178.0,177.94,22.62]
[1747231592863,28.70882653,177.99,177.94,22.62]
[1747231593059,166.70882653,178.0,177.94,22.62]
[1747231593242,138.0,178.0,177.94,22.62]
[1747231593570,28.70882653,177.99,177.94,22.62]
[1747231593748,34.3271555,177.99,177.94,22.62]
[1747231593946,28.70882653,177.99,177.94,28.23986704]
[1747231594266,28.70882653,177.97,177.91,22.62]
[1747231594559,28.70882653,177.96,177.9,22.62]
[1747231594750,28.70882653,177.97,177.9,22.62]
[1747231595147,28.70882653,177.95,177.88,12.09441471]
[1747231595354,28.70882653,177.93,177.88,6.4727]
[1747231595653,28.70882653,177.92,177.88,6.4727]
[1747231595848,28.70882653,177.93,177.88,12.09443643]
[1747231596460,28.70882653,177.93,177.88,6.4727]
[1747231596669,28.70882653,177.94,177.88,12.09427824]
[1747231596854,28.70882653,177.95,177.88,12.09427824]
[1747231597165,28.70882653,177.94,177.88,12.09427824]
[1747231597943,28.70882653,177.96,177.88,12.09427824]
[1747231598254,28.70882653,177.95,177.88,12.09427824]
[1747231598454,28.70882653,177.94,177.88,12.09427824]
[1747231598864,28.70882653,177.93,177.88,6.4727]
[1747231599450,28.70882653,177.94,177.88,6.4727]
[1747231599767,28.70882653,177.94,177.88,12.09446563]
[1747231599768,34.3288121,177.94,177.88,12.09446563]
[1747231600479,5.61998557,177.94,177.88,12.09446563]
[1747231600682,28.70882653,177.93,177.88,6.4727]
[1747231601191,138.0,177.97,177.88,12.09440914]
[1747231601362,138.0,178.1,177.93,26.0]
[1747231601546,138.0,178.1,177.95,0.28432314]
[1747231601744,138.0,178.09,178.01,5.61766192]
[1747231601950,138.0,178.09,178.02,45.3]
[1747231602249,5.61340452,178.15,178.03,32.5563]
[1747231602449,28.70882653,178.14,178.04,18.64964886]
[1747231602685,5.61340452,178.15,178.04,18.64964886]
[1747231602878,28.70882653,178.13,178.03,32.5563]
[1747231603065,143.61295674,178.16,178.04,18.64964886]
[1747231603373,138.0,178.16,178.06,44.64964886]
[1747231603950,138.0,178.16,178.07,5.61576907]
[1747231604158,138.0,178.16,178.08,18.64964886]
[1747231604349,138.0,178.16,178.09,22.58]
[1747231604350,166.70882653,178.16,178.09,22.58]
[1747231604775,143.61314873,178.16,178.09,22.58]
[1747231604984,28.70882653,178.14,178.09,22.58]
[1747231605411,28.70882653,178.13,178.09,22.58]
[1747231605586,28.70882653,178.12,178.09,22.58]
[1747231605978,5.61441254,178.12,178.09,22.58]
[1747231606397,166.70882653,178.11,178.09,22.58]
[1747231606783,166.70882653,178.1,178.09,22.58]
[1747231606988,166.70882653,178.1,178.05,1.5693]
[1747231607600,28.70882653,178.09,178.05,1.5693]
[1747231607905,19.64989423,178.12,178.05,1.5693]
[1747231607906,28.70882653,178.1,178.05,1.5693]
[1747231608114,5.61391951,178.13,178.05,7.18562331]
[1747231608325,34.32274604,178.13,178.05,7.18562331]
[1747231608476,34.32274604,178.13,178.05,1.5693]
[1747231608818,28.70882653,178.11,178.05,1.5693]
[1747231608983,28.70882653,178.12,178.05,1.5693]
[1747231609483,34.32274604,178.13,178.05,7.18561482]
[1747231609828,5.61230216,178.18,178.06,18.64964886]
[1747231609982,172.32112869,178.18,178.07,5.61576907]
[1747231610307,28.70882653,178.17,178.08,22.56]
[1747231610620,28.70882653,178.15,178.09,22.54]
[1747231610793,28.70882653,178.14,178.09,22.54]
[1747231611183,28.70882653,178.15,178.09,22.54]
[1747231611911,28.70882653,178.14,178.09,22.54]
[1747231613125,28.70882653,178.12,178.08,22.56]
[1747231613288,26.0,178.14,178.06,22.54]
[1747231613488,28.70882653,178.11,178.06,22.54]
[1747231613919,5.61482313,178.1,178.06,22.54]
[1747231614295,28.70882653,178.14,178.06,28.15607315]
[1747231614913,28.70882653,178.12,178.06,22.54]
[1747231615708,28.70882653,178.11,178.06,22.54]
[1747231616093,34.32360821,178.11,178.06,22.54]
[1747231616497,28.70882653,178.09,178.05,1.5693]
[1747231618091,5.61423826,178.12,178.05,1.5693]
[1747231618298,34.32306479,178.12,178.05,1.5693]
[1747231618818,28.70882653,178.13,178.05,7.18569872]
[1747231618994,138.0,178.12,178.05,7.18569872]
[1747231620108,143.61428681,178.12,178.05,7.18569872]
[1747231620521,138.0,178.12,178.05,7.18569872]
[1747231621024,28.70882653,178.06,178.03,6.5563]